[Event "Early-Titled-Tuesday-Blitz-August-29-2023"]
[Site "Chess.com"]
[Date "2023.08.29"]
[Round "4"]
[White "Roedor"]
[Black "Semetey"]
[Result "1-0"]
[WhiteElo "2430"]
[BlackElo "2600"]
[TimeControl "180+1"]
[EndTime "8:38:45 PDT"]
[Termination "Roedor won by resignation"]

1. d4 {[%clk 0:02:57.1]} 1... d5 {[%clk 0:02:53.3]} 2. c4 {[%clk 0:02:56.8]}
2... e6 {[%clk 0:02:53.9]} 3. g3 {[%clk 0:02:56.5]} 3... Nf6 {[%clk 0:02:53.3]}
4. Bg2 {[%clk 0:02:56.5]} 4... Bb4+ {[%clk 0:02:49]} 5. Nd2 {[%clk 0:02:55.9]}
5... O-O {[%clk 0:02:46.5]} 6. Nf3 {[%clk 0:02:55.8]} 6... dxc4 {[%clk
0:02:46.7]} 7. O-O {[%clk 0:02:55.8]} 7... c3 {[%clk 0:02:45.2]} 8. Nc4 {[%clk
0:02:55.8]} 8... cxb2 {[%clk 0:02:42.2]} 9. Bxb2 {[%clk 0:02:56.7]} 9... Nc6
{[%clk 0:02:39]} 10. e3 {[%clk 0:02:50.6]} 10... Bd7 {[%clk 0:02:36.2]} 11. Qb3
{[%clk 0:02:46.8]} 11... Rb8 {[%clk 0:02:33]} 12. Nfe5 {[%clk 0:02:44.9]} 12...
Qe7 {[%clk 0:02:28.2]} 13. Nxc6 {[%clk 0:02:33.4]} 13... Bxc6 {[%clk 0:02:27]}
14. Bxc6 {[%clk 0:02:31.9]} 14... bxc6 {[%clk 0:02:27.9]} 15. Qc2 {[%clk
0:02:28.2]} 15... c5 {[%clk 0:02:25.5]} 16. Ne5 {[%clk 0:02:24.8]} 16... cxd4
{[%clk 0:01:30.7]} 17. Nc6 {[%clk 0:02:21.8]} 17... Qd6 {[%clk 0:01:30.9]} 18.
Nxb8 {[%clk 0:02:13.7]} 18... Rxb8 {[%clk 0:01:26]} 19. Bxd4 {[%clk 0:02:12]}
19... c5 {[%clk 0:01:20.3]} 20. Bxf6 {[%clk 0:02:09.4]} 20... gxf6 {[%clk
0:01:21.2]} 21. a3 {[%clk 0:02:00.2]} 21... Ba5 {[%clk 0:01:16.2]} 22. Rab1
{[%clk 0:02:00]} 22... Bb6 {[%clk 0:01:15]} 23. Rfd1 {[%clk 0:01:58.1]} 23...
Qc6 {[%clk 0:01:06.4]} 24. Qc3 {[%clk 0:01:47.1]} 24... f5 {[%clk 0:00:51]} 25.
Qc4 {[%clk 0:01:33.1]} 25... Rc8 {[%clk 0:00:45.7]} 26. Rd3 {[%clk 0:01:22.7]}
26... Qe4 {[%clk 0:00:29.8]} 27. Rc1 {[%clk 0:01:19.4]} 27... Kg7 {[%clk
0:00:28.5]} 28. Qc3+ {[%clk 0:01:13.5]} 28... Kg6 {[%clk 0:00:28.2]} 29. Rd7
{[%clk 0:01:07.5]} 29... h5 {[%clk 0:00:25.7]} 30. Rcd1 {[%clk 0:00:58.6]} 30...
h4 {[%clk 0:00:24.5]} 31. Rxf7 {[%clk 0:00:45.6]} 31... Rg8 {[%clk 0:00:12.1]}
32. Qf6+ {[%clk 0:00:41.5]} 32... Kh5 {[%clk 0:00:11.6]} 33. Rh7+ {[%clk
0:00:39.6]} 33... Kg4 {[%clk 0:00:11.7]} 34. Rxh4+ {[%clk 0:00:39.6]} 34... Kf3
{[%clk 0:00:11.9]} 35. Rxe4 {[%clk 0:00:36.6]} 1-0

[Event "Early-Titled-Tuesday-Blitz-August-29-2023"]
[Site "Chess.com"]
[Date "2023.08.29"]
[Round "4"]
[White "mapleaff"]
[Black "Pax-Pramana"]
[Result "0-1"]
[WhiteElo "2279"]
[BlackElo "2485"]
[TimeControl "180+1"]
[EndTime "8:38:46 PDT"]
[Termination "Pax-Pramana won by resignation"]

1. e4 {[%clk 0:02:59.9]} 1... c5 {[%clk 0:03:00.1]} 2. Nf3 {[%clk 0:02:59.2]}
2... e6 {[%clk 0:02:59.2]} 3. d4 {[%clk 0:02:57.2]} 3... cxd4 {[%clk 0:03:00.1]}
4. Nxd4 {[%clk 0:02:58.1]} 4... Nf6 {[%clk 0:03:00.8]} 5. Nc3 {[%clk 0:02:57.6]}
5... Nc6 {[%clk 0:03:01.4]} 6. Ndb5 {[%clk 0:02:54.1]} 6... Bb4 {[%clk
0:02:59.6]} 7. a3 {[%clk 0:02:52.8]} 7... Bxc3+ {[%clk 0:02:59.8]} 8. Nxc3
{[%clk 0:02:53.7]} 8... d5 {[%clk 0:03:00.4]} 9. exd5 {[%clk 0:02:53.8]} 9...
exd5 {[%clk 0:03:01.3]} 10. Bd3 {[%clk 0:02:53.3]} 10... O-O {[%clk 0:03:01.9]}
11. O-O {[%clk 0:02:53.4]} 11... Bg4 {[%clk 0:02:57.2]} 12. f3 {[%clk
0:02:50.9]} 12... Bh5 {[%clk 0:02:57.6]} 13. Bg5 {[%clk 0:02:41.5]} 13... Qb6+
{[%clk 0:02:57.7]} 14. Kh1 {[%clk 0:02:40]} 14... Ne4 {[%clk 0:02:58.4]} 15.
Bxe4 {[%clk 0:02:24.9]} 15... dxe4 {[%clk 0:02:56.6]} 16. Nxe4 {[%clk
0:02:25.3]} 16... Qxb2 {[%clk 0:02:52.7]} 17. Rb1 {[%clk 0:02:18.9]} 17... Qxa3
{[%clk 0:02:46.6]} 18. Rxb7 {[%clk 0:02:16.1]} 18... h6 {[%clk 0:01:57.4]} 19.
Bxh6 {[%clk 0:02:07.1]} 19... Rfe8 {[%clk 0:01:34.2]} 20. Bc1 {[%clk 0:00:48.9]}
20... Qa6 {[%clk 0:01:15]} 21. Nc5 {[%clk 0:00:47]} 21... Qc4 {[%clk 0:01:14.9]}
22. Nd3 {[%clk 0:00:42.5]} 22... Nd4 {[%clk 0:01:07.7]} 23. Nf4 {[%clk
0:00:30.5]} 23... Rad8 {[%clk 0:00:38.4]} 24. Qd3 {[%clk 0:00:15.3]} 24... Qc6
{[%clk 0:00:36.8]} 25. Rxa7 {[%clk 0:00:08.3]} 25... Nb5 {[%clk 0:00:31.5]} 26.
Qxd8 {[%clk 0:00:02.1]} 26... Rxd8 {[%clk 0:00:29.3]} 27. Nxh5 {[%clk 0:00:02]}
27... Nxa7 {[%clk 0:00:29]} 0-1

[Event "Early-Titled-Tuesday-Blitz-August-29-2023"]
[Site "Chess.com"]
[Date "2023.08.29"]
[Round "4"]
[White "bascheyaro"]
[Black "vi_pranav"]
[Result "0-1"]
[WhiteElo "2804"]
[BlackElo "2999"]
[TimeControl "180+1"]
[EndTime "8:38:49 PDT"]
[Termination "vi_pranav won by resignation"]

1. d4 {[%clk 0:03:00.9]} 1... Nf6 {[%clk 0:02:59.6]} 2. Nf3 {[%clk 0:03:01.1]}
2... e6 {[%clk 0:02:59.1]} 3. Bf4 {[%clk 0:03:01.3]} 3... b6 {[%clk 0:02:57.3]}
4. e3 {[%clk 0:03:01.3]} 4... Bb7 {[%clk 0:02:58.2]} 5. Nbd2 {[%clk 0:03:01.4]}
5... Be7 {[%clk 0:02:58.3]} 6. Bd3 {[%clk 0:03:01.8]} 6... O-O {[%clk
0:02:58.6]} 7. Qe2 {[%clk 0:03:01.5]} 7... d5 {[%clk 0:02:58.8]} 8. e4 {[%clk
0:02:45.9]} 8... dxe4 {[%clk 0:02:48.7]} 9. Nxe4 {[%clk 0:02:45.9]} 9... Nbd7
{[%clk 0:02:49.3]} 10. O-O {[%clk 0:02:26]} 10... c5 {[%clk 0:02:45.3]} 11.
Nxf6+ {[%clk 0:02:12.4]} 11... Nxf6 {[%clk 0:02:44.9]} 12. dxc5 {[%clk
0:02:12.7]} 12... Bxc5 {[%clk 0:02:38.3]} 13. Rad1 {[%clk 0:02:12.3]} 13... Qe7
{[%clk 0:02:37.1]} 14. c3 {[%clk 0:02:11.6]} 14... Rad8 {[%clk 0:02:28.9]} 15.
Ne5 {[%clk 0:01:54.4]} 15... Bd6 {[%clk 0:02:17.9]} 16. Bg3 {[%clk 0:01:43.6]}
16... Bb8 {[%clk 0:02:16.2]} 17. Rd2 {[%clk 0:01:36.3]} 17... g6 {[%clk
0:02:12]} 18. Rfd1 {[%clk 0:01:33.2]} 18... Nh5 {[%clk 0:02:10.3]} 19. Nf3
{[%clk 0:00:39.3]} 19... Nf4 {[%clk 0:02:09.1]} 20. Bxf4 {[%clk 0:00:39.4]}
20... Bxf4 {[%clk 0:02:09.9]} 21. Rc2 {[%clk 0:00:40.1]} 21... Qf6 {[%clk
0:02:05.2]} 22. c4 {[%clk 0:00:26.2]} 22... Rd6 {[%clk 0:02:00.1]} 23. Rf1
{[%clk 0:00:25.7]} 23... Rfd8 {[%clk 0:01:59.8]} 24. Be4 {[%clk 0:00:26.2]}
24... Ba6 {[%clk 0:01:50.6]} 25. g3 {[%clk 0:00:25.1]} 25... Bh6 {[%clk
0:01:50.1]} 26. b3 {[%clk 0:00:25.2]} 26... Bc8 {[%clk 0:01:46.1]} 27. a4 {[%clk
0:00:25.1]} 27... e5 {[%clk 0:01:46.5]} 28. Bd5 {[%clk 0:00:21.8]} 28... Bg4
{[%clk 0:01:43.8]} 29. Kg2 {[%clk 0:00:20.3]} 29... Qf5 {[%clk 0:01:42.7]} 30.
Re1 {[%clk 0:00:20.7]} 30... Rxd5 {[%clk 0:01:34.2]} 31. cxd5 {[%clk 0:00:21.6]}
31... Bxf3+ {[%clk 0:01:34.7]} 32. Qxf3 {[%clk 0:00:21.3]} 32... Qxc2 {[%clk
0:01:35.3]} 33. Rxe5 {[%clk 0:00:21.7]} 33... Qc7 {[%clk 0:01:34.7]} 34. Re4
{[%clk 0:00:21.2]} 34... Bg7 {[%clk 0:01:32.4]} 35. Re3 {[%clk 0:00:20.9]} 35...
h5 {[%clk 0:01:30.6]} 36. h4 {[%clk 0:00:20.9]} 36... Qd7 {[%clk 0:01:30.4]} 37.
Rd3 {[%clk 0:00:21.4]} 37... Bf8 {[%clk 0:01:29.9]} 38. Qe4 {[%clk 0:00:21.3]}
38... Bd6 {[%clk 0:01:30.3]} 39. Rf3 {[%clk 0:00:21]} 39... Re8 {[%clk
0:01:30.4]} 40. Qd3 {[%clk 0:00:21.1]} 40... Qe7 {[%clk 0:01:30.2]} 41. Re3
{[%clk 0:00:21.3]} 41... Qd8 {[%clk 0:01:30]} 42. Rxe8+ {[%clk 0:00:21.9]} 42...
Qxe8 {[%clk 0:01:30.2]} 43. Kf3 {[%clk 0:00:22.5]} 43... Qe5 {[%clk 0:01:30.3]}
44. Qc4 {[%clk 0:00:22.9]} 44... Kg7 {[%clk 0:01:30.3]} 45. Kg2 {[%clk
0:00:23.1]} 45... a5 {[%clk 0:01:28.6]} 46. Qd3 {[%clk 0:00:23.2]} 46... Bc5
{[%clk 0:01:29]} 47. Qd2 {[%clk 0:00:21.8]} 47... Qe4+ {[%clk 0:01:28.2]} 48.
Kf1 {[%clk 0:00:12.3]} 48... Qd4 {[%clk 0:01:27.1]} 49. Qxd4+ {[%clk 0:00:05.5]}
49... Bxd4 {[%clk 0:01:28]} 50. Ke2 {[%clk 0:00:06.2]} 50... Kf6 {[%clk
0:01:28.2]} 51. f4 {[%clk 0:00:06.9]} 51... Ke7 {[%clk 0:01:26.8]} 52. Kf3
{[%clk 0:00:06.9]} 52... f5 {[%clk 0:01:26.1]} 0-1

[Event "Early-Titled-Tuesday-Blitz-August-29-2023"]
[Site "Chess.com"]
[Date "2023.08.29"]
[Round "4"]
[White "chessajedrezz2020"]
[Black "rochaaaaaaaaaa"]
[Result "0-1"]
[WhiteElo "2667"]
[BlackElo "2218"]
[TimeControl "180+1"]
[EndTime "8:38:49 PDT"]
[Termination "rochaaaaaaaaaa won on time"]

1. Nf3 {[%clk 0:02:59.7]} 1... d5 {[%clk 0:02:59.4]} 2. d4 {[%clk 0:02:57.8]}
2... Nf6 {[%clk 0:02:58.9]} 3. c4 {[%clk 0:02:56.6]} 3... e6 {[%clk 0:02:59.2]}
4. Nc3 {[%clk 0:02:56.4]} 4... dxc4 {[%clk 0:02:58.9]} 5. e4 {[%clk 0:02:14.8]}
5... b5 {[%clk 0:02:57.2]} 6. e5 {[%clk 0:01:52.2]} 6... Nd5 {[%clk 0:02:56.9]}
7. Nxb5 {[%clk 0:01:51.6]} 7... Nb6 {[%clk 0:02:57.4]} 8. g3 {[%clk 0:01:07.9]}
8... Nc6 {[%clk 0:02:41.4]} 9. Bg2 {[%clk 0:01:06.6]} 9... Bb7 {[%clk
0:02:41.4]} 10. O-O {[%clk 0:01:06.2]} 10... Be7 {[%clk 0:02:41.1]} 11. Be3
{[%clk 0:00:43.2]} 11... O-O {[%clk 0:02:40.1]} 12. Rc1 {[%clk 0:00:42.7]} 12...
Rb8 {[%clk 0:02:38.6]} 13. Re1 {[%clk 0:00:32.3]} 13... a6 {[%clk 0:02:33]} 14.
Nc3 {[%clk 0:00:31]} 14... Nb4 {[%clk 0:02:27.7]} 15. Re2 {[%clk 0:00:29]} 15...
h6 {[%clk 0:02:15.1]} 16. Rd2 {[%clk 0:00:28.5]} 16... Qd7 {[%clk 0:02:03.5]}
17. a3 {[%clk 0:00:26.9]} 17... N4d5 {[%clk 0:02:03.7]} 18. Qe2 {[%clk 0:00:20]}
18... Rfd8 {[%clk 0:01:53.8]} 19. Ne4 {[%clk 0:00:19.3]} 19... Qb5 {[%clk
0:01:46.9]} 20. Nc5 {[%clk 0:00:11.3]} 20... Bxc5 {[%clk 0:01:31]} 21. dxc5
{[%clk 0:00:11.5]} 21... Nxe3 {[%clk 0:01:31.5]} 22. Rxd8+ {[%clk 0:00:09.2]}
22... Rxd8 {[%clk 0:01:31.5]} 23. cxb6 {[%clk 0:00:09.8]} 23... Nxg2 {[%clk
0:01:25.8]} 24. bxc7 {[%clk 0:00:08.9]} 24... Rd3 {[%clk 0:00:54.9]} 25. Nd2
{[%clk 0:00:03.5]} 25... Qd5 {[%clk 0:00:48.2]} 26. Ne4 {[%clk 0:00:01.8]} 26...
Rd4 {[%clk 0:00:29.8]} 27. f3 {[%clk 0:00:01.8]} 27... Qxe5 {[%clk 0:00:22.3]}
28. Kxg2 {[%clk 0:00:01.6]} 28... Qxc7 {[%clk 0:00:20.6]} 0-1

[Event "Early-Titled-Tuesday-Blitz-August-29-2023"]
[Site "Chess.com"]
[Date "2023.08.29"]
[Round "4"]
[White "Herzog2012"]
[Black "aranibos"]
[Result "1-0"]
[WhiteElo "2417"]
[BlackElo "2270"]
[TimeControl "180+1"]
[EndTime "8:38:53 PDT"]
[Termination "Herzog2012 won by resignation"]

1. e4 {[%clk 0:03:00.9]} 1... c6 {[%clk 0:02:59.5]} 2. d4 {[%clk 0:03:00.5]}
2... d5 {[%clk 0:03:00]} 3. Nc3 {[%clk 0:03:00.3]} 3... dxe4 {[%clk 0:02:59.6]}
4. Nxe4 {[%clk 0:03:01.2]} 4... Bf5 {[%clk 0:02:59.7]} 5. Ng3 {[%clk 0:03:00.2]}
5... Bg6 {[%clk 0:03:00.3]} 6. Bc4 {[%clk 0:02:55.8]} 6... e6 {[%clk 0:02:59.3]}
7. N1e2 {[%clk 0:02:55.1]} 7... Bd6 {[%clk 0:02:58.7]} 8. O-O {[%clk 0:02:54.4]}
8... Qc7 {[%clk 0:02:56.7]} 9. f4 {[%clk 0:02:54.3]} 9... Ne7 {[%clk 0:02:56.6]}
10. Bd3 {[%clk 0:02:35.6]} 10... Bxd3 {[%clk 0:02:55.6]} 11. Qxd3 {[%clk
0:02:36.5]} 11... g6 {[%clk 0:02:47.3]} 12. c4 {[%clk 0:02:29.7]} 12... Qd8
{[%clk 0:02:43.5]} 13. b3 {[%clk 0:02:19.4]} 13... O-O {[%clk 0:02:39.3]} 14.
Bb2 {[%clk 0:02:19.9]} 14... Na6 {[%clk 0:02:34.6]} 15. Ne4 {[%clk 0:02:19.9]}
15... f5 {[%clk 0:02:22.6]} 16. Ng5 {[%clk 0:02:18.5]} 16... Qd7 {[%clk
0:02:20.8]} 17. Qe3 {[%clk 0:02:17.3]} 17... Rae8 {[%clk 0:01:55.4]} 18. Qxe6+
{[%clk 0:01:46.7]} 18... Qxe6 {[%clk 0:01:54.9]} 19. Nxe6 {[%clk 0:01:47.6]}
19... Rf7 {[%clk 0:01:52.9]} 20. Ng5 {[%clk 0:01:46.9]} 20... Rff8 {[%clk
0:01:51.2]} 21. a3 {[%clk 0:01:43.3]} 21... Nc8 {[%clk 0:01:39.8]} 22. Kf2
{[%clk 0:01:35.2]} 22... h6 {[%clk 0:01:38.4]} 23. Nf3 {[%clk 0:01:34.6]} 23...
Rxe2+ {[%clk 0:01:27.5]} 24. Kxe2 {[%clk 0:01:33.7]} 24... Bxf4 {[%clk
0:01:28.1]} 25. Kf2 {[%clk 0:01:27.9]} 25... Nd6 {[%clk 0:01:25.5]} 26. g3
{[%clk 0:01:26]} 26... Ne4+ {[%clk 0:01:25.1]} 27. Kg2 {[%clk 0:01:25.4]} 27...
Bc7 {[%clk 0:01:16.2]} 28. Rad1 {[%clk 0:01:23.3]} 28... b5 {[%clk 0:01:12.8]}
29. d5 {[%clk 0:01:21.1]} 29... bxc4 {[%clk 0:01:11.4]} 30. dxc6 {[%clk
0:00:48.7]} 30... c3 {[%clk 0:01:10.3]} 31. Bc1 {[%clk 0:00:47.1]} 31... Nb8
{[%clk 0:01:06.5]} 32. Bxh6 {[%clk 0:00:43.9]} 32... Re8 {[%clk 0:01:06.8]} 33.
Nd4 {[%clk 0:00:34.7]} 33... Bb6 {[%clk 0:01:00.1]} 34. Bf4 {[%clk 0:00:25.4]}
34... Bxd4 {[%clk 0:00:50.1]} 35. Bxb8 {[%clk 0:00:25.2]} 35... Rxb8 {[%clk
0:00:46.4]} 36. Rxd4 {[%clk 0:00:24]} 36... Rc8 {[%clk 0:00:42.2]} 37. Rc4
{[%clk 0:00:18.8]} 37... Kf7 {[%clk 0:00:42.1]} 38. Rxe4 {[%clk 0:00:16.4]}
38... Rxc6 {[%clk 0:00:40.4]} 39. Rc4 {[%clk 0:00:16.9]} 1-0

[Event "Early-Titled-Tuesday-Blitz-August-29-2023"]
[Site "Chess.com"]
[Date "2023.08.29"]
[Round "4"]
[White "Boundless_Strike"]
[Black "Sl4werThanYou"]
[Result "0-1"]
[WhiteElo "2496"]
[BlackElo "2741"]
[TimeControl "180+1"]
[EndTime "8:38:54 PDT"]
[Termination "Sl4werThanYou won by resignation"]

1. d3 {[%clk 0:03:00.2]} 1... b6 {[%clk 0:02:48.6]} 2. e4 {[%clk 0:02:52.4]}
2... Bb7 {[%clk 0:02:49.5]} 3. f4 {[%clk 0:02:52.2]} 3... c5 {[%clk 0:02:45.1]}
4. Nf3 {[%clk 0:02:51.7]} 4... g6 {[%clk 0:02:46]} 5. Be2 {[%clk 0:02:51.9]}
5... Bg7 {[%clk 0:02:46.6]} 6. O-O {[%clk 0:02:52.4]} 6... e6 {[%clk 0:02:46]}
7. Qe1 {[%clk 0:02:44.2]} 7... Ne7 {[%clk 0:02:46.3]} 8. Qh4 {[%clk 0:02:43.5]}
8... O-O {[%clk 0:02:46.3]} 9. f5 {[%clk 0:02:24]} 9... gxf5 {[%clk 0:02:45.6]}
10. Bh6 {[%clk 0:02:09.8]} 10... Ng6 {[%clk 0:02:44.7]} 11. Qh5 {[%clk
0:02:08.4]} 11... Qf6 {[%clk 0:02:34.6]} 12. Nc3 {[%clk 0:01:56.7]} 12... Bxh6
{[%clk 0:02:23.9]} 13. Qxh6 {[%clk 0:01:57.6]} 13... Qg7 {[%clk 0:02:24.5]} 14.
Qxg7+ {[%clk 0:01:23.2]} 14... Kxg7 {[%clk 0:02:25.4]} 15. exf5 {[%clk
0:01:23.3]} 15... exf5 {[%clk 0:02:26.3]} 16. d4 {[%clk 0:01:20.4]} 16... Nc6
{[%clk 0:02:21]} 17. dxc5 {[%clk 0:01:15.1]} 17... bxc5 {[%clk 0:02:21.9]} 18.
Bd3 {[%clk 0:01:13.9]} 18... Nge7 {[%clk 0:02:18.2]} 19. Nh4 {[%clk 0:00:36.9]}
19... Nd4 {[%clk 0:02:16.8]} 20. Nxf5+ {[%clk 0:00:37.1]} 20... Nexf5 {[%clk
0:02:16.2]} 21. Bxf5 {[%clk 0:00:37.9]} 21... Bc6 {[%clk 0:02:15.5]} 22. Bd3
{[%clk 0:00:35.2]} 22... Rae8 {[%clk 0:02:10]} 23. Rf2 {[%clk 0:00:19.2]} 23...
f5 {[%clk 0:02:05.1]} 24. Raf1 {[%clk 0:00:12.9]} 24... Re5 {[%clk 0:02:05.7]}
25. Ne2 {[%clk 0:00:08.4]} 25... Nxe2+ {[%clk 0:02:01.2]} 26. Rxe2 {[%clk
0:00:08.6]} 26... Kf6 {[%clk 0:01:59.6]} 27. Rxe5 {[%clk 0:00:07.4]} 27... Kxe5
{[%clk 0:02:00.5]} 28. Re1+ {[%clk 0:00:08]} 28... Kd6 {[%clk 0:01:57.4]} 29.
Kf2 {[%clk 0:00:06.5]} 29... Rf6 {[%clk 0:01:57.3]} 30. g3 {[%clk 0:00:05.1]}
30... Rh6 {[%clk 0:01:57.8]} 31. h4 {[%clk 0:00:04.8]} 31... f4 {[%clk
0:01:58.4]} 32. Re8 {[%clk 0:00:04.7]} 32... fxg3+ {[%clk 0:01:58.4]} 33. Kxg3
{[%clk 0:00:05.6]} 33... Rf6 {[%clk 0:01:58.2]} 34. Bxh7 {[%clk 0:00:04.6]}
34... Rf3+ {[%clk 0:01:58.9]} 35. Kg4 {[%clk 0:00:05.2]} 35... Rf1 {[%clk
0:01:59.6]} 36. h5 {[%clk 0:00:04.8]} 36... Rg1+ {[%clk 0:02:00.1]} 37. Kh4
{[%clk 0:00:05]} 37... Bd5 {[%clk 0:01:59.1]} 38. b3 {[%clk 0:00:04.4]} 38...
Bf7 {[%clk 0:01:57.9]} 39. Rf8 {[%clk 0:00:03.5]} 39... Rh1+ {[%clk 0:01:58.6]}
40. Kg5 {[%clk 0:00:04.1]} 40... Bxh5 {[%clk 0:01:59.2]} 41. Bf5 {[%clk
0:00:03.7]} 41... Bf3 {[%clk 0:01:57.5]} 42. Kf6 {[%clk 0:00:03.8]} 42... Bc6
{[%clk 0:01:57.9]} 43. Rb8 {[%clk 0:00:04.1]} 43... Rh6+ {[%clk 0:01:58]} 44.
Kg5 {[%clk 0:00:04.4]} 44... Rh2 {[%clk 0:01:58.9]} 45. Re8 {[%clk 0:00:04.6]}
45... Rg2+ {[%clk 0:01:59.5]} 46. Kf4 {[%clk 0:00:04.9]} 46... Rf2+ {[%clk
0:02:00.4]} 47. Kg5 {[%clk 0:00:05.4]} 47... c4 {[%clk 0:01:56.7]} 48. Re3
{[%clk 0:00:05]} 48... Kc5 {[%clk 0:01:56]} 49. Re5+ {[%clk 0:00:04.8]} 49...
Kd4 {[%clk 0:01:54.3]} 50. Ra5 {[%clk 0:00:05]} 50... c3 {[%clk 0:01:50.4]} 51.
Rxa7 {[%clk 0:00:05]} 51... Ke3 {[%clk 0:01:50.8]} 52. Bxd7 {[%clk 0:00:04.9]}
52... Bxd7 {[%clk 0:01:50.9]} 53. Rxd7 {[%clk 0:00:05.6]} 53... Rxc2 {[%clk
0:01:51.8]} 54. Rc7 {[%clk 0:00:06]} 54... Kd2 {[%clk 0:01:51.3]} 55. b4 {[%clk
0:00:06.2]} 55... Rxa2 {[%clk 0:01:51.5]} 56. b5 {[%clk 0:00:07]} 56... Rb2
{[%clk 0:01:52.2]} 57. Rc5 {[%clk 0:00:07.4]} 57... c2 {[%clk 0:01:52.8]} 58.
Rd5+ {[%clk 0:00:08]} 58... Ke3 {[%clk 0:01:39.3]} 59. Rc5 {[%clk 0:00:07.9]}
59... Kd3 {[%clk 0:01:40]} 60. Rd5+ {[%clk 0:00:03.9]} 60... Kc4 {[%clk
0:01:40.7]} 61. Rd8 {[%clk 0:00:02.7]} 61... Rxb5+ {[%clk 0:01:41.4]} 62. Kf4
{[%clk 0:00:02.9]} 62... c1=Q+ {[%clk 0:01:42.3]} 0-1

[Event "Early-Titled-Tuesday-Blitz-August-29-2023"]
[Site "Chess.com"]
[Date "2023.08.29"]
[Round "4"]
[White "lefonghua"]
[Black "Jojo_898"]
[Result "1-0"]
[WhiteElo "2673"]
[BlackElo "2436"]
[TimeControl "180+1"]
[EndTime "8:38:55 PDT"]
[Termination "lefonghua won by resignation"]

1. d4 {[%clk 0:03:00.9]} 1... Nf6 {[%clk 0:02:59.5]} 2. c4 {[%clk 0:03:01.2]}
2... e6 {[%clk 0:02:59.7]} 3. Nc3 {[%clk 0:03:01.7]} 3... b6 {[%clk 0:03:00.1]}
4. e4 {[%clk 0:03:00.6]} 4... d6 {[%clk 0:03:00.5]} 5. f4 {[%clk 0:02:59.8]}
5... c5 {[%clk 0:02:55.7]} 6. d5 {[%clk 0:02:59.8]} 6... exd5 {[%clk 0:02:52.3]}
7. cxd5 {[%clk 0:03:00.7]} 7... Qe7 {[%clk 0:02:39.2]} 8. Bb5+ {[%clk
0:02:48.6]} 8... Bd7 {[%clk 0:02:35.2]} 9. Bxd7+ {[%clk 0:02:44.8]} 9... Nbxd7
{[%clk 0:02:36.1]} 10. Qe2 {[%clk 0:02:45]} 10... a6 {[%clk 0:02:23.2]} 11. a4
{[%clk 0:02:42.5]} 11... g6 {[%clk 0:02:21.5]} 12. Nf3 {[%clk 0:02:42.7]} 12...
Bg7 {[%clk 0:02:22]} 13. O-O {[%clk 0:02:29.2]} 13... O-O {[%clk 0:02:21.4]} 14.
Nd2 {[%clk 0:02:26.4]} 14... Rfe8 {[%clk 0:02:14.4]} 15. Re1 {[%clk 0:02:24.6]}
15... Rab8 {[%clk 0:02:14.4]} 16. Qxa6 {[%clk 0:02:19.2]} 16... Ng4 {[%clk
0:02:07.8]} 17. Nf3 {[%clk 0:02:14.2]} 17... f5 {[%clk 0:01:59.4]} 18. h3 {[%clk
0:02:01.8]} 18... Ngf6 {[%clk 0:01:16.5]} 19. e5 {[%clk 0:01:54]} 19... dxe5
{[%clk 0:00:59.1]} 20. fxe5 {[%clk 0:01:54.9]} 20... Ne4 {[%clk 0:00:48.5]} 21.
Nxe4 {[%clk 0:01:36.6]} 21... fxe4 {[%clk 0:00:48.1]} 22. d6 {[%clk 0:01:35]}
22... Qe6 {[%clk 0:00:41.1]} 23. Ng5 {[%clk 0:01:29.6]} 23... Qd5 {[%clk
0:00:21.3]} 24. e6 {[%clk 0:01:19.7]} 24... Bd4+ {[%clk 0:00:20.2]} 25. Kh1
{[%clk 0:01:19.7]} 25... Rxe6 {[%clk 0:00:17.6]} 26. Nxe6 {[%clk 0:01:18.6]}
26... Qxe6 {[%clk 0:00:18.5]} 27. Bf4 {[%clk 0:01:11.7]} 27... Nf6 {[%clk
0:00:17.7]} 28. d7 {[%clk 0:00:57]} 28... Rd8 {[%clk 0:00:15.5]} 29. a5 {[%clk
0:00:57.5]} 29... Qxd7 {[%clk 0:00:13.8]} 30. Qxb6 {[%clk 0:00:55.6]} 30... Nd5
{[%clk 0:00:13.7]} 31. Qb3 {[%clk 0:00:55.5]} 31... Kg7 {[%clk 0:00:13.2]} 32.
Bg5 {[%clk 0:00:55.3]} 32... Rf8 {[%clk 0:00:12.6]} 33. Rxe4 {[%clk 0:00:52.7]}
33... Qf5 {[%clk 0:00:10.1]} 34. Rxd4 {[%clk 0:00:38.6]} 34... cxd4 {[%clk
0:00:09.4]} 35. Bd2 {[%clk 0:00:38.4]} 35... Nf4 {[%clk 0:00:08.9]} 36. Bxf4
{[%clk 0:00:37.2]} 36... Qxf4 {[%clk 0:00:09]} 37. a6 {[%clk 0:00:36.4]} 37...
Ra8 {[%clk 0:00:07.3]} 38. Qb7+ {[%clk 0:00:36]} 1-0

[Event "Early-Titled-Tuesday-Blitz-August-29-2023"]
[Site "Chess.com"]
[Date "2023.08.29"]
[Round "4"]
[White "tteshan"]
[Black "Cayse"]
[Result "0-1"]
[WhiteElo "2584"]
[BlackElo "2899"]
[TimeControl "180+1"]
[EndTime "8:38:56 PDT"]
[Termination "Cayse won by resignation"]

1. e4 {[%clk 0:03:00.9]} 1... e5 {[%clk 0:03:00.1]} 2. Nf3 {[%clk 0:03:00.7]}
2... Nc6 {[%clk 0:03:00.3]} 3. Bb5 {[%clk 0:03:01.4]} 3... a6 {[%clk 0:03:00.2]}
4. Ba4 {[%clk 0:03:01.8]} 4... Nf6 {[%clk 0:03:00]} 5. O-O {[%clk 0:03:02.2]}
5... Be7 {[%clk 0:03:00.2]} 6. Re1 {[%clk 0:03:02.2]} 6... b5 {[%clk 0:03:00.3]}
7. Bb3 {[%clk 0:03:02.9]} 7... O-O {[%clk 0:03:00.8]} 8. a4 {[%clk 0:03:03.6]}
8... b4 {[%clk 0:03:00.7]} 9. d3 {[%clk 0:03:03]} 9... d6 {[%clk 0:03:01.1]} 10.
Nbd2 {[%clk 0:03:03.3]} 10... Na5 {[%clk 0:02:59.8]} 11. Ba2 {[%clk 0:02:59.8]}
11... c5 {[%clk 0:02:59.7]} 12. Nc4 {[%clk 0:02:55.7]} 12... Nc6 {[%clk
0:02:53.2]} 13. c3 {[%clk 0:02:49.1]} 13... Rb8 {[%clk 0:02:49.8]} 14. Bg5
{[%clk 0:02:39.3]} 14... Be6 {[%clk 0:02:37.7]} 15. Rc1 {[%clk 0:02:15.8]} 15...
h6 {[%clk 0:02:35.5]} 16. Bxf6 {[%clk 0:02:09.1]} 16... Bxf6 {[%clk 0:02:36.4]}
17. Bb1 {[%clk 0:01:57.2]} 17... Re8 {[%clk 0:02:28.6]} 18. Ne3 {[%clk
0:01:52.7]} 18... bxc3 {[%clk 0:02:21.6]} 19. bxc3 {[%clk 0:01:49]} 19... Rb2
{[%clk 0:02:21.4]} 20. Re2 {[%clk 0:01:36.6]} 20... Qb8 {[%clk 0:02:10.8]} 21.
Rxb2 {[%clk 0:01:30.5]} 21... Qxb2 {[%clk 0:02:09.4]} 22. Qc2 {[%clk 0:01:31.2]}
22... Rb8 {[%clk 0:02:08]} 23. Nd1 {[%clk 0:01:16.2]} 23... Qa3 {[%clk
0:02:07.1]} 24. h3 {[%clk 0:00:37.4]} 24... Bb3 {[%clk 0:02:05.5]} 25. Qd2
{[%clk 0:00:26.1]} 25... Bxa4 {[%clk 0:02:00.8]} 26. Bc2 {[%clk 0:00:21.5]}
26... Bxc2 {[%clk 0:01:43]} 27. Rxc2 {[%clk 0:00:22.4]} 27... Rb1 {[%clk
0:01:41.4]} 28. Kh2 {[%clk 0:00:23]} 28... Qb3 {[%clk 0:01:25.6]} 29. Ne3 {[%clk
0:00:22.3]} 29... Kh7 {[%clk 0:01:13.3]} 30. Nd5 {[%clk 0:00:22.1]} 30... Bd8
{[%clk 0:01:12.6]} 31. Ra2 {[%clk 0:00:18.8]} 31... a5 {[%clk 0:01:11.7]} 32. d4
{[%clk 0:00:10.8]} 32... cxd4 {[%clk 0:01:05.2]} 33. cxd4 {[%clk 0:00:11]} 33...
Nxd4 {[%clk 0:01:05.3]} 34. Nxd4 {[%clk 0:00:10.7]} 34... exd4 {[%clk
0:01:06.2]} 35. Rc2 {[%clk 0:00:09.7]} 35... Bg5 {[%clk 0:00:48.2]} 36. f4
{[%clk 0:00:07.6]} 36... Bh4 {[%clk 0:00:48.2]} 37. Nc3 {[%clk 0:00:02.5]} 37...
dxc3 {[%clk 0:00:47.1]} 38. Qd3 {[%clk 0:00:03]} 38... Qb5 {[%clk 0:00:43.6]}
39. Qxc3 {[%clk 0:00:02.4]} 39... Qf1 {[%clk 0:00:43.4]} 0-1